bitfinex/quotes_BTCUSD_20230114
["timestamp","ask_amount","ask_price","bid_price","bid_amount"]
[1673694777603,1.078155,20670.0,20669.0,0.00244789]
[1673694778109,0.978155,20670.0,20669.0,0.00244789]
[1673694779077,0.0002,20671.0,20669.0,0.18710938]
[1673694779321,0.0002,20671.0,20669.0,0.67092138]
[1673694779587,0.0002,20671.0,20670.0,0.32099]
[1673694780066,0.0002,20671.0,20670.0,0.42099]
[1673694780566,0.1,20672.0,20670.0,0.32099]
[1673694780819,0.1,20672.0,20671.0,0.204038]
[1673694781049,0.1,20672.0,20671.0,0.44730567]
[1673694782285,0.1,20672.0,20671.0,0.24326767]
[1673694782519,0.1,20672.0,20669.0,0.00244789]
[1673694782520,0.583746,20672.0,20669.0,0.00244789]
[1673694782820,0.010571,20671.0,20669.0,0.00244789]
[1673694783067,0.561613,20670.0,20669.0,0.00244789]
[1673694783565,0.661613,20670.0,20669.0,0.00244789]
[1673694783804,0.29699342,20683.0,20669.0,1.75419153]
[1673694784056,0.14390309,20682.0,20678.0,0.47720169]
[1673694784300,0.21855348,20687.0,20674.0,0.1835]
[1673694784301,0.02221047,20691.0,20681.0,0.12623748]
[1673694784567,0.19653145,20688.0,20682.0,0.98878064]
[1673694784819,0.19653145,20688.0,20684.0,0.966926]
[1673694785073,0.02221047,20691.0,20685.0,0.51153095]
[1673694785327,0.02221047,20691.0,20686.0,2.44910564]
[1673694785571,0.02221047,20691.0,20687.0,1.28869864]
[1673694785820,2.92e-06,20690.0,20688.0,1.36562764]
[1673694786089,0.02796419,20696.0,20689.0,1.38866564]
[1673694786371,0.02796419,20696.0,20691.0,1.449899]
[1673694786622,0.02796419,20696.0,20692.0,0.51140795]
[1673694786860,0.02796419,20696.0,20693.0,0.88219864]
[1673694787121,0.02796419,20696.0,20694.0,0.420649]
[1673694787370,0.02796419,20696.0,20695.0,0.19252916]
[1673694787613,0.23947959,20696.0,20695.0,0.19252916]
[1673694787857,0.02796419,20696.0,20695.0,0.19252916]
[1673694788103,0.28373336,20696.0,20695.0,0.19252916]
[1673694788623,0.28373336,20696.0,20692.0,0.1]
[1673694788624,0.02796419,20696.0,20692.0,0.1]
[1673694788872,0.02796419,20696.0,20694.0,0.1]
[1673694788873,0.21750242,20695.0,20694.0,0.1]
[1673694789116,0.21750242,20695.0,20694.0,0.292322]
[1673694789365,0.02796419,20696.0,20687.0,0.77166453]
[1673694789621,0.02796419,20696.0,20688.0,0.19656921]
[1673694789865,0.02796419,20696.0,20690.0,0.24880913]
[1673694790112,0.24594923,20695.0,20691.0,0.420905]
[1673694790368,0.02796419,20696.0,20693.0,0.21740535]
[1673694790611,0.2,20700.0,20694.0,0.61158295]
[1673694790612,0.21676639,20699.0,20694.0,0.61158295]
[1673694790880,0.21676639,20699.0,20695.0,0.38306895]
[1673694791125,0.40387546,20706.0,20694.0,0.1]
[1673694791126,0.02796419,20707.0,20698.0,0.47720169]
[1673694791364,0.02796419,20707.0,20701.0,0.1165]
[1673694791365,0.02206443,20703.0,20701.0,0.1165]
[1673694791608,0.02206443,20703.0,20702.0,2.57093164]
[1673694792106,4.43e-06,20703.0,20702.0,2.57093164]
[1673694792349,0.02141136,20707.0,20702.0,1.903004]
[1673694792594,0.02141136,20707.0,20703.0,0.192266]
[1673694792595,0.20962222,20706.0,20703.0,0.192266]
[1673694792838,0.20962222,20706.0,20705.0,0.1]
[1673694793090,0.20962222,20706.0,20705.0,0.192247]
[1673694793580,0.02141136,20707.0,20702.0,1.099245]
[1673694793581,0.49956,20711.0,20702.0,0.6162]
[1673694793831,0.49956,20711.0,20703.0,0.19072595]
[1673694793832,0.482896,20709.0,20703.0,0.19072595]
[1673694794083,0.482896,20709.0,20701.0,0.00019]
[1673694794084,0.47720169,20708.0,20701.0,0.00019]
[1673694794354,0.980948,20706.0,20701.0,0.19091595]
[1673694794604,0.01354,20705.0,20701.0,0.00019]
[1673694794856,0.482954,20706.0,20702.0,0.19072595]
[1673694795110,0.27693598,20707.0,20704.0,0.24889809]
[1673694795360,0.24453175,20709.0,20705.0,0.40456095]
[1673694795606,0.23753963,20709.0,20706.0,0.51152595]
[1673694795838,0.23753963,20709.0,20707.0,0.21381]
[1673694796091,0.50451684,20713.0,20708.0,0.320767]
[1673694796351,0.20218567,20711.0,20709.0,0.19072595]
[1673694796642,0.02171984,20713.0,20706.0,0.19072595]
[1673694796643,0.51806084,20713.0,20706.0,0.19072595]
[1673694796891,0.51806084,20713.0,20710.0,0.23263958]
[1673694796892,0.02171984,20713.0,20710.0,0.23263958]
[1673694797145,0.02171984,20713.0,20711.0,0.19072595]
[1673694797146,0.22267421,20713.0,20711.0,0.19072595]
[1673694797377,0.22267421,20713.0,20712.0,0.19072595]
[1673694797378,0.02171984,20713.0,20712.0,0.19072595]
[1673694797621,0.02171984,20713.0,20712.0,1.47719795]
[1673694797866,0.02171984,20713.0,20712.0,1.286472]
[1673694798132,0.00671984,20713.0,20712.0,1.286472]
[1673694798390,0.00671984,20713.0,20712.0,0.32085]
[1673694798894,0.07396984,20713.0,20712.0,0.32085]
[1673694799138,0.07396984,20713.0,20706.0,0.22610752]
[1673694799386,0.482811,20712.0,20705.0,0.3298606]
[1673694799643,0.64186198,20712.0,20704.0,6e-05]
[1673694799902,0.01354,20710.0,20704.0,6e-05]
[1673694800145,0.01354,20711.0,20707.0,0.26384603]
[1673694800414,0.511614,20713.0,20708.0,0.19072595]
[1673694800415,0.00671984,20713.0,20708.0,0.19072595]
[1673694800662,0.00671984,20713.0,20712.0,0.24646209]
[1673694800905,0.00671984,20713.0,20712.0,0.32091]
[1673694800906,0.07396984,20713.0,20712.0,0.32091]
[1673694801152,0.07396984,20713.0,20712.0,6e-05]
[1673694801153,0.31678627,20713.0,20712.0,6e-05]
[1673694801407,0.24953627,20713.0,20712.0,6e-05]
[1673694801650,0.07396984,20713.0,20712.0,6e-05]
[1673694802156,0.22619692,20713.0,20706.0,0.00019]
[1673694802411,0.2168,20712.0,20706.0,0.00019]
[1673694802697,0.6,20710.0,20706.0,0.00019]
[1673694802937,0.1,20709.0,20703.0,0.2603238]
[1673694803183,0.482871,20710.0,20704.0,0.21682447]
[1673694803428,0.482871,20710.0,20706.0,0.24625859]
[1673694803670,0.482871,20710.0,20700.0,0.94840232]
[1673694803671,0.01354,20709.0,20700.0,0.94840232]
[1673694803926,0.965888,20707.0,20700.0,1.3706185]
[1673694804191,0.1,20706.0,20700.0,0.94840232]
[1673694804429,0.482993,20705.0,20700.0,0.94840232]
[1673694804920,0.21552394,20706.0,20701.0,0.24644889]
[1673694805166,0.21552394,20706.0,20702.0,0.19072595]
[1673694805426,0.482844,20711.0,20703.0,0.67374395]
[1673694805672,0.48951984,20713.0,20704.0,0.19072595]
[1673694805925,0.48951984,20713.0,20705.0,0.19072595]
[1673694805926,0.482821,20712.0,20705.0,0.19072595]
[1673694806172,0.482821,20712.0,20706.0,0.19072595]
[1673694806435,0.23053889,20710.0,20707.0,0.19072595]
[1673694806680,0.23053889,20710.0,20703.0,0.483018]
[1673694806681,0.23053889,20710.0,20706.0,0.23875234]
[1673694806930,0.23053889,20710.0,20705.0,0.19072595]
[1673694806931,0.482864,20710.0,20705.0,0.19072595]
[1673694807172,0.01354,20709.0,20701.0,0.21055432]
[1673694807420,0.01354,20709.0,20700.0,0.94840232]
[1673694807421,0.965874,20707.0,20700.0,0.94840232]
[1673694807668,0.01354,20705.0,20700.0,1.19808457]
[1673694807945,0.582993,20705.0,20700.0,1.19808457]
[1673694808189,0.482993,20705.0,20700.0,1.19808457]
[1673694808438,0.01354,20703.0,20700.0,0.94840232]
[1673694808680,0.96609,20702.0,20700.0,0.94840232]
[1673694809170,0.25786746,20701.0,20700.0,0.94840232]
[1673694809423,0.26742829,20701.0,20700.0,0.94840232]
[1673694809681,0.3,20701.0,20700.0,0.94840232]
[1673694809969,0.99490169,20701.0,20698.0,0.00019]
[1673694810223,0.08079,20699.0,20698.0,0.00019]
[1673694810487,0.08079,20699.0,20697.0,0.00227548]
[1673694810727,0.08079,20699.0,20690.0,0.23921043]
[1673694810728,0.1,20697.0,20690.0,0.23921043]
[1673694810987,0.4,20697.0,20690.0,0.23921043]
[1673694811232,0.96642,20695.0,20690.0,0.23921043]
[1673694811479,0.96642,20695.0,20688.0,0.19351588]
[1673694811480,0.3,20694.0,20688.0,0.19351588]
[1673694811728,0.01354,20692.0,20682.0,0.483488]
[1673694811974,0.37365433,20692.0,20685.0,0.2305488]
[1673694812228,1.366615,20691.0,20682.0,0.2588397]
[1673694812471,1.366615,20691.0,20684.0,0.26585674]
[1673694812472,1.066615,20691.0,20684.0,0.26585674]
[1673694812730,0.1,20690.0,20684.0,0.19072595]
[1673694812971,0.1,20690.0,20684.0,0.18572595]
[1673694812972,0.483359,20689.0,20684.0,0.18572595]
[1673694813221,0.48089396,20689.0,20685.0,0.2058983]
[1673694813469,0.583309,20691.0,20685.0,0.19072595]
[1673694813710,0.583309,20691.0,20686.0,0.19072595]
[1673694813950,0.24304123,20695.0,20687.0,1.15749295]
[1673694814194,0.21295424,20693.0,20688.0,0.51157595]
[1673694814444,0.21295424,20693.0,20689.0,0.41494936]
[1673694814919,0.21295424,20693.0,20689.0,0.22422341]
[1673694815154,0.483262,20693.0,20687.0,0.24568863]
[1673694815367,0.483262,20693.0,20689.0,0.24676344]
[1673694815653,0.483262,20693.0,20689.0,0.43748939]
[1673694816158,0.483262,20693.0,20689.0,0.24676344]
[1673694816404,0.6282338,20693.0,20687.0,0.20183302]
[1673694816650,0.1,20692.0,20687.0,0.39255897]
[1673694816909,0.483219,20695.0,20688.0,0.19072595]
[1673694817173,5.12796153,20707.0,20688.0,0.19072595]
[1673694817174,0.00671984,20713.0,20695.0,1.02211848]
[1673694817419,0.00671984,20713.0,20703.0,0.79072595]
[1673694817672,0.00671984,20713.0,20706.0,0.67367695]
[1673694817924,0.00671984,20713.0,20707.0,0.61139495]
[1673694818178,0.00671984,20713.0,20708.0,0.40463395]
[1673694818415,0.00671984,20713.0,20709.0,0.51136295]
[1673694818665,0.00671984,20713.0,20710.0,1.47031795]
[1673694818919,0.00671984,20713.0,20711.0,1.58853164]
[1673694819165,0.02777263,20717.0,20712.0,0.313864]
[1673694819408,0.02777263,20717.0,20713.0,0.51129695]
[1673694819656,0.02777263,20717.0,20714.0,0.98732795]
[1673694819907,0.02777263,20717.0,20715.0,0.320538]
[1673694820162,0.02777263,20717.0,20716.0,0.213815]
[1673694820418,0.02777263,20717.0,20716.0,0.705033]
[1673694820669,0.02499537,20717.0,20716.0,0.213815]
[1673694821172,0.02499537,20717.0,20716.0,0.222315]
[1673694821666,0.02499537,20717.0,20716.0,0.322315]
[1673694821918,0.02319467,20720.0,20717.0,0.02499]
[1673694822172,0.02319467,20720.0,20718.0,0.803161]
[1673694822426,0.02319467,20720.0,20719.0,0.222278]
[1673694822671,0.02319467,20720.0,20719.0,0.322278]
[1673694823410,0.02319467,20720.0,20719.0,0.79947969]
[1673694823660,0.02319467,20720.0,20719.0,0.222278]
[1673694824166,0.02319467,20720.0,20719.0,0.704926]
[1673694824422,0.02319467,20720.0,20719.0,1.187574]
[1673694824934,0.05305175,20720.0,20719.0,0.92106771]
[1673694825182,0.02319467,20720.0,20719.0,0.93898449]
[1673694825429,0.02319467,20720.0,20719.0,0.40622589]
[1673694825685,0.02319467,20720.0,20719.0,0.50622589]
[1673694825941,0.02319467,20720.0,20719.0,0.40622589]
[1673694826189,0.02319467,20720.0,20719.0,0.88887389]
[1673694826432,0.02319467,20720.0,20719.0,0.804926]
[1673694826676,0.02319467,20720.0,20719.0,0.93052024]
[1673694826921,0.02319467,20720.0,20719.0,0.44787224]
[1673694827165,0.02319467,20720.0,20719.0,0.213778]
[1673694827956,0.26389341,20720.0,20717.0,0.26352396]
[1673694828450,0.26389341,20720.0,20717.0,0.482686]
[1673694828451,0.02319467,20720.0,20717.0,0.482686]
[1673694828705,0.05319467,20720.0,20718.0,0.320779]
[1673694828958,0.04319467,20720.0,20719.0,1.51600369]
[1673694829199,0.0220744,20724.0,20720.0,0.1822078]
[1673694829445,0.0220744,20724.0,20722.0,0.1]
[1673694829693,0.0220744,20724.0,20723.0,1.27783595]
[1673694829946,0.0220744,20724.0,20723.0,0.79528095]
[1673694830725,0.0220744,20724.0,20723.0,0.564539]
[1673694830982,0.2348854,20724.0,20723.0,0.073484]
[1673694831213,0.0220744,20724.0,20723.0,0.29280433]
[1673694831715,0.0220744,20724.0,20723.0,0.29228833]
[1673694831975,0.0220744,20724.0,20723.0,0.081468]
[1673694832478,0.0220744,20724.0,20723.0,0.4408816]
[1673694832727,0.0220744,20724.0,20723.0,0.3408816]
[1673694832979,0.2620744,20724.0,20723.0,0.3408816]
[1673694833228,0.2620744,20724.0,20720.0,0.0822078]
[1673694833471,0.02985708,20723.0,20720.0,0.0822078]
[1673694833712,0.02985708,20723.0,20720.0,0.34971154]
[1673694833961,0.02985708,20723.0,20721.0,0.320759]
[1673694834207,0.25546502,20724.0,20722.0,0.072947]
[1673694834457,0.0220744,20724.0,20723.0,0.320726]
[1673694834699,0.0220744,20724.0,20723.0,1.09400695]
[1673694834948,0.0220744,20724.0,20723.0,0.911781]
[1673694835240,0.0220744,20724.0,20723.0,1.394336]
[1673694835774,0.0220744,20724.0,20723.0,1.59169057]
[1673694836022,0.0220744,20724.0,20723.0,1.394336]
[1673694836266,0.0220744,20724.0,20723.0,1.06777538]
[1673694836527,0.0220744,20724.0,20723.0,0.803281]
[1673694836780,0.21711447,20724.0,20723.0,0.320726]
[1673694837280,0.21711447,20724.0,20721.0,0.482582]
[1673694837281,0.21694928,20724.0,20721.0,0.482582]
[1673694837520,0.24997949,20723.0,20721.0,0.482582]
[1673694837775,0.24997949,20723.0,20722.0,0.320759]
[1673694838035,0.02190921,20724.0,20722.0,0.803337]
[1673694838274,0.02190921,20724.0,20723.0,0.82286447]
[1673694839017,0.26660331,20724.0,20723.0,0.82286447]
[1673694839257,0.02190921,20724.0,20723.0,1.31391947]
[1673694839739,0.02190921,20724.0,20723.0,0.82286447]
[1673694839990,0.26363128,20724.0,20723.0,0.82286447]
[1673694840225,0.23381412,20724.0,20723.0,0.82286447]
[1673694840486,0.02190921,20724.0,20723.0,6.447e-05]
[1673694840744,0.71784121,20724.0,20720.0,0.0822078]
[1673694840998,0.27500812,20724.0,20720.0,0.0822078]
[1673694841237,0.02190921,20724.0,20722.0,0.22647399]
[1673694841497,0.02190921,20724.0,20723.0,0.1]
[1673694841743,0.02162021,20724.0,20723.0,0.1]
[1673694841984,0.02162021,20724.0,20723.0,0.903315]
[1673694842227,0.02162021,20724.0,20723.0,0.811815]
[1673694842472,0.02162021,20724.0,20723.0,0.32076]
[1673694842736,0.02162021,20724.0,20720.0,0.0822078]
[1673694842737,0.24966503,20724.0,20720.0,0.0822078]
[1673694842989,0.05147729,20724.0,20720.0,0.0822078]
[1673694843246,0.05147729,20724.0,20720.0,0.33905923]
[1673694843247,0.21249408,20723.0,20720.0,0.33905923]
[1673694843498,0.02162021,20724.0,20721.0,0.1]
[1673694843739,0.02162021,20724.0,20722.0,1.768494]
[1673694843989,0.02162021,20724.0,20722.0,1.447734]
[1673694844233,0.02162021,20724.0,20723.0,0.32076]
[1673694844490,0.02162021,20724.0,20723.0,0.903315]
[1673694844733,0.03162021,20724.0,20723.0,0.911815]
[1673694846484,0.06147729,20724.0,20723.0,0.811815]
[1673694846737,0.03162021,20724.0,20723.0,0.32076]
[1673694846981,0.03162021,20724.0,20721.0,0.20610793]
[1673694846982,0.2450636,20724.0,20721.0,0.20610793]
[1673694847236,0.27492068,20724.0,20721.0,0.20610793]
[1673694847482,0.21976759,20724.0,20720.0,0.5648318]
[1673694847730,0.24962467,20724.0,20720.0,0.28889136]
[1673694847978,0.73215967,20724.0,20720.0,0.28889136]
[1673694848220,0.54401229,20724.0,20720.0,0.0822078]
[1673694848462,0.1942569,20723.0,20720.0,0.0822078]
[1673694849226,0.51415221,20724.0,20720.0,0.0822078]
[1673694849469,0.582555,20723.0,20720.0,0.0822078]
[1673694849723,0.2134,20722.0,20720.0,0.0822078]
[1673694849964,0.482586,20722.0,20720.0,0.0822078]
[1673694850240,0.2134,20721.0,20720.0,0.0822078]
[1673694850743,0.965168,20722.0,20720.0,0.0822078]
[1673694850990,0.19289302,20721.0,20720.0,0.0822078]
[1673694852221,0.09740188,20721.0,20720.0,0.0822078]
[1673694852472,0.796002,20721.0,20720.0,0.0822078]
[1673694852966,0.0822,20720.0,20713.0,0.00217418]
[1673694853213,0.01354,20716.0,20713.0,0.00217418]
[1673694853457,1.565722,20718.0,20713.0,0.00217418]
[1673694853458,0.24325708,20715.0,20713.0,0.00217418]
[1673694853709,0.02985708,20714.0,20713.0,0.00217418]
[1673694853951,0.34325708,20714.0,20713.0,0.00217418]
[1673694854188,0.796165,20714.0,20713.0,0.00217418]
[1673694854442,0.82602208,20714.0,20713.0,7.418e-05]
[1673694854701,0.1,20713.0,20710.0,0.00019]
[1673694854953,1.448433,20712.0,20710.0,0.00019]
[1673694855205,0.3134,20711.0,20710.0,0.00019]
[1673694855453,0.3134,20711.0,20702.0,0.483026]
[1673694855454,0.1,20710.0,20704.0,0.11574]
[1673694855701,0.99308687,20709.0,20704.0,0.11574]
[1673694855961,0.99308687,20709.0,20700.0,7.162177]
[1673694855962,0.07464,20707.0,20706.0,0.00019]
[1673694856210,0.1,20706.0,20701.0,0.11574]
[1673694856465,0.1,20706.0,20701.0,0.32967539]
[1673694856466,1.20667987,20705.0,20701.0,0.32967539]
[1673694856720,0.02731887,20704.0,20701.0,0.11574]
[1673694856978,0.483006,20704.0,20702.0,0.11574]
[1673694857223,0.1,20703.0,20702.0,0.11574]
[1673694857464,0.1,20703.0,20701.0,0.11574]
[1673694857696,1.17949,20702.0,20701.0,0.11574]
[1673694857990,1.17949,20702.0,20700.0,6.0]
[1673694857991,1.17949,20702.0,20700.0,6.20450778]
[1673694858244,0.483045,20702.0,20701.0,0.11574]
[1673694858525,0.482975,20706.0,20704.0,0.21104946]
[1673694858772,0.71556428,20709.0,20705.0,0.77297591]
[1673694859021,0.19695332,20708.0,20706.0,0.19072595]
[1673694859269,0.19695332,20708.0,20705.0,0.26148996]
[1673694859270,7.2779278,20713.0,20707.0,0.19072595]
[1673694859519,7.2779278,20713.0,20708.0,0.19072595]
[1673694859520,0.18882124,20713.0,20708.0,0.19072595]
[1673694859783,0.403654,20715.0,20708.0,0.1]
[1673694860015,0.1425318,20720.0,20714.0,0.6]
[1673694860258,0.02162021,20724.0,20715.0,1.92449533]
[1673694860514,0.02162021,20724.0,20716.0,1.33286]
[1673694860771,0.02158648,20719.0,20717.0,0.67642764]
[1673694861021,0.02162021,20724.0,20717.0,0.67642764]
[1673694861022,0.02162021,20724.0,20719.0,0.04813924]
[1673694861276,0.02162021,20724.0,20720.0,1.09718764]
[1673694861518,0.00018,20721.0,20720.0,1.06831469]
[1673694861763,0.00018,20721.0,20720.0,1.38907469]
[1673694862009,0.00018,20721.0,20720.0,1.437768]
[1673694862253,0.00018,20721.0,20720.0,0.96056631]
[1673694862501,0.00018,20721.0,20720.0,1.437768]
[1673694862702,0.00018,20721.0,20720.0,2.220393]
[1673694863265,0.00018,20721.0,20720.0,2.820393]
[1673694863784,0.02162021,20724.0,20720.0,1.44319131]
[1673694864040,0.02162021,20724.0,20721.0,0.47720169]
[1673694864291,0.02162021,20724.0,20722.0,0.903338]
[1673694864539,0.02162021,20724.0,20722.0,0.582578]
[1673694864815,0.02162021,20724.0,20723.0,0.32076]
[1673694865058,0.02162021,20724.0,20723.0,0.42926]
[1673694865313,0.03162021,20724.0,20723.0,0.42926]
[1673694865560,0.03162021,20724.0,20723.0,1.39718764]
[1673694865809,6e-05,20726.0,20724.0,0.03162]
[1673694866050,0.02341108,20727.0,20726.0,0.1]
[1673694866051,7.108e-05,20727.0,20726.0,0.1]
[1673694866303,0.02341108,20731.0,20726.0,2.35365064]
[1673694866570,0.02341108,20731.0,20728.0,0.1]
[1673694866812,0.05167798,20739.0,20729.0,0.62912295]
[1673694867055,0.05167798,20739.0,20730.0,2.03921896]
[1673694867309,0.05167798,20739.0,20732.0,1.446987]
[1673694867556,0.05095569,20746.0,20737.0,0.47708169]
[1673694867837,0.05095569,20746.0,20739.0,1.446501]
[1673694868113,0.05095569,20746.0,20740.0,0.66792764]
[1673694868356,0.05095569,20746.0,20739.0,1.446501]
[1673694868357,0.05095569,20746.0,20741.0,2.05263564]
[1673694868611,0.05095569,20746.0,20742.0,0.19072595]
[1673694868909,0.05095569,20746.0,20743.0,1.95253564]
[1673694869105,0.00337309,20752.0,20743.0,1.95253564]
[1673694869106,0.36664484,20757.0,20744.0,0.76792764]
[1673694869361,0.37332753,20760.0,20751.0,0.45561521]
[1673694869362,1.12804579,20760.0,20751.0,0.45561521]
[1673694869605,0.35978753,20761.0,20752.0,0.19072595]
[1673694869606,0.24859368,20761.0,20752.0,0.19072595]
[1673694869845,5.47051455,20763.0,20753.0,0.19072595]
[1673694870109,5.47051455,20763.0,20754.0,0.67255895]
[1673694870110,0.25648786,20761.0,20754.0,0.67255895]
[1673694870347,0.481721,20759.0,20755.0,0.19072595]
[1673694870605,0.6,20756.0,20744.0,0.482049]
[1673694870861,0.6,20756.0,20739.0,2.90269]
[1673694870862,0.1174,20753.0,20739.0,2.60269]
[1673694871104,0.1174,20753.0,20744.0,0.24393863]
[1673694871105,0.01354,20748.0,20744.0,0.24393863]
[1673694871354,0.47720169,20748.0,20741.0,0.1826]
[1673694871614,0.47720169,20748.0,20741.0,0.40150067]
[1673694871849,1.039295,20747.0,20737.0,0.1826]
[1673694872097,0.01354,20743.0,20737.0,0.1826]
[1673694872341,0.2134,20742.0,20738.0,0.24868609]
[1673694872588,0.964134,20744.0,20737.0,0.44126396]
[1673694872842,0.2134,20743.0,20739.0,0.20019712]
[1673694873129,0.482067,20744.0,20736.0,0.18279]
[1673694873130,0.1,20742.0,20736.0,0.18279]
[1673694873379,0.482067,20744.0,20737.0,0.25318541]
[1673694873380,0.695541,20741.0,20737.0,0.25318541]
[1673694873622,0.53080231,20743.0,20736.0,0.37351595]
[1673694873876,0.482074,20744.0,20739.0,0.24070715]
[1673694874122,0.01354,20741.0,20736.0,0.00019]
[1673694874365,0.67289595,20740.0,20729.0,0.43626574]
[1673694874613,0.40412595,20739.0,20729.0,0.62370989]
[1673694874859,0.19072595,20738.0,20734.0,0.00019]
[1673694875101,0.19072595,20737.0,20734.0,0.00019]
[1673694875364,0.2134,20736.0,20734.0,0.00019]
[1673694875608,0.482225,20738.0,20734.0,0.00019]
[1673694875862,0.2134,20737.0,20734.0,0.00019]
[1673694876104,0.67295095,20738.0,20734.0,0.00019]
[1673694876353,0.2134,20737.0,20734.0,0.18763415]
[1673694876597,0.67295095,20738.0,20732.0,0.25254163]
[1673694876874,0.19072595,20737.0,20732.0,0.43998578]
[1673694877137,0.19072595,20737.0,20732.0,0.18744415]
[1673694877395,0.19072595,20737.0,20728.0,0.582422]
[1673694877640,0.44008486,20736.0,20729.0,0.18744415]
[1673694877887,0.44008486,20736.0,20733.0,0.25277311]
[1673694878165,0.22879834,20738.0,20733.0,0.18744415]
[1673694878419,0.25947464,20737.0,20736.0,6e-05]
[1673694878657,0.01354,20737.0,20736.0,6e-05]
[1673694878903,0.00019,20738.0,20736.0,6e-05]
[1673694879408,0.00019,20738.0,20730.0,0.482581]
[1673694879409,0.26191544,20736.0,20733.0,0.2048031]
[1673694879663,0.00019,20738.0,20733.0,0.2048031]
[1673694879664,0.19072595,20735.0,20733.0,6e-05]
[1673694879944,0.44941776,20735.0,20733.0,6e-05]
[1673694880253,0.2134,20734.0,20733.0,6e-05]
[1673694880997,0.3134,20734.0,20733.0,6e-05]
[1673694881790,0.32694,20734.0,20733.0,6e-05]
[1673694882551,0.3134,20734.0,20733.0,6e-05]
[1673694883049,0.482262,20736.0,20733.0,6e-05]
[1673694883305,0.22044131,20734.0,20733.0,0.18750415]
[1673694883550,0.43384131,20734.0,20733.0,6e-05]
[1673694883792,0.2134,20734.0,20733.0,6e-05]
[1673694884043,0.2134,20734.0,20715.0,0.14035879]
[1673694884044,1.79063797,20734.0,20715.0,0.14035879]
[1673694884293,0.01354,20725.0,20718.0,0.26202136]
[1673694884546,0.965114,20723.0,20718.0,0.26202136]
[1673694884789,0.40412595,20722.0,20714.0,0.482755]
[1673694885041,0.19072595,20721.0,20715.0,0.1]
[1673694885287,0.19072595,20720.0,20719.0,0.24044724]
[1673694885533,0.19295734,20722.0,20719.0,0.24044724]
[1673694885534,0.38368329,20722.0,20719.0,0.24044724]
[1673694885779,0.19295734,20722.0,20714.0,0.482755]
[1673694886024,0.19072595,20721.0,20715.0,0.00019]
[1673694886273,0.19072595,20720.0,20715.0,0.00019]
[1673694886525,0.19072595,20719.0,20716.0,0.18784281]
[1673694886779,0.19072595,20719.0,20715.0,0.00019]
[1673694887038,0.19072595,20718.0,20715.0,0.00019]
[1673694887295,0.01354,20716.0,20715.0,0.00019]
[1673694887544,0.482693,20718.0,20713.0,0.0025382]
[1673694887789,0.19072595,20718.0,20715.0,0.19653512]
[1673694888078,0.26228492,20719.0,20715.0,0.38397927]
[1673694888345,0.1,20720.0,20715.0,0.22077714]
[1673694888346,0.23912952,20720.0,20715.0,0.22077714]
[1673694888576,0.2027748,20723.0,20716.0,0.18744415]
[1673694888827,0.2389188,20720.0,20717.0,0.18744415]
[1673694889097,0.482602,20721.0,20713.0,0.0025382]
[1673694889323,0.24661753,20716.0,20713.0,0.18998235]
[1673694889571,0.19072595,20715.0,20713.0,0.0025382]
[1673694889818,0.696165,20714.0,20713.0,0.0025382]
[1673694890314,0.94557925,20714.0,20713.0,0.0025382]
[1673694890557,0.41750386,20714.0,20713.0,0.0025382]
[1673694890802,0.1,20714.0,20713.0,0.0025382]
[1673694891287,0.33108115,20714.0,20713.0,0.0025382]
[1673694891531,0.3134,20714.0,20713.0,0.0025382]
[1673694891776,0.37962455,20714.0,20713.0,0.0025382]
[1673694892026,0.79060169,20714.0,20713.0,3.82e-05]
[1673694892269,0.3134,20714.0,20713.0,3.82e-05]
[1673694892784,0.796165,20714.0,20713.0,3.82e-05]
[1673694893043,1.27336669,20714.0,20713.0,3.82e-05]
[1673694893290,1.50860846,20714.0,20713.0,3.82e-05]
[1673694893536,1.27336669,20714.0,20713.0,3.82e-05]
[1673694894288,1.57336669,20714.0,20713.0,3.82e-05]
[1673694894538,0.29584031,20713.0,20712.0,4.01e-06]
[1673694894784,0.87720169,20713.0,20706.0,0.0025382]
[1673694895043,0.01354,20708.0,20706.0,0.0025382]
[1673694895286,0.67365395,20707.0,20706.0,0.0025382]
[1673694895531,1.13911487,20707.0,20706.0,0.0025382]
[1673694895789,0.83498892,20707.0,20706.0,0.0025382]
[1673694896282,0.482832,20712.0,20706.0,0.18998235]
[1673694896533,0.75009872,20713.0,20706.0,0.18998235]
[1673694896534,0.7192441,20713.0,20707.0,1.13840871]
[1673694896776,0.1,20712.0,20708.0,0.18744415]
[1673694897026,0.22390298,20711.0,20708.0,0.18744415]
[1673694897273,0.23035945,20709.0,20707.0,1.18829872]
[1673694897525,0.482905,20708.0,20707.0,0.95096456]
[1673694897766,0.582905,20708.0,20707.0,0.95096456]
[1673694898007,0.796305,20708.0,20707.0,0.95096456]
[1673694898258,1.04223421,20708.0,20707.0,0.95096456]
[1673694898510,0.796305,20708.0,20707.0,0.95096456]
[1673694898756,0.482889,20709.0,20707.0,0.95096456]
[1673694898996,0.68384682,20710.0,20707.0,1.15255586]
[1673694899250,0.68384682,20710.0,20707.0,1.34000001]
[1673694899504,0.583033,20712.0,20707.0,1.34000001]
[1673694899505,0.0002,20712.0,20707.0,1.62133671]
[1673694899762,0.482794,20713.0,20707.0,1.62133671]
[1673694899763,0.482794,20713.0,20708.0,0.18744415]
[1673694900012,0.482789,20713.0,20709.0,0.18744415]
[1673694900295,0.482768,20714.0,20710.0,0.18744415]
[1673694900541,0.25308517,20713.0,20710.0,0.18744415]
[1673694900803,0.1,20713.0,20707.0,2.12469256]
[1673694901046,0.43893303,20712.0,20708.0,0.19885289]
[1673694901302,0.582789,20713.0,20707.0,1.82920871]
[1673694901303,0.482989,20713.0,20707.0,1.64176456]
[1673694901550,0.40922982,20713.0,20710.0,0.21238711]
[1673694901809,0.20637942,20712.0,20710.0,0.39983126]
[1673694902067,0.0002,20713.0,20710.0,0.21238711]
[1673694902318,0.0002,20713.0,20711.0,0.19594415]
[1673694902563,0.0002,20713.0,20712.0,1.286382]
[1673694902808,0.0002,20713.0,20712.0,1.294882]
[1673694903072,0.25209791,20716.0,20712.0,1.294882]
[1673694903327,0.582653,20719.0,20713.0,0.26278143]
[1673694903570,0.582653,20719.0,20714.0,0.18744415]
[1673694903571,0.978949,20717.0,20714.0,0.18744415]
[1673694903828,0.796123,20716.0,20709.0,0.2607468]
[1673694904068,0.19072595,20715.0,20709.0,0.44819095]
[1673694904324,0.67350395,20714.0,20709.0,0.2607468]
[1673694904570,0.41766595,20713.0,20707.0,0.95096456]